[Event "Early-Titled-Tuesday-Blitz-March-12-2024"]
[Site "Chess.com"]
[Date "2024.03.12"]
[Round "8"]
[White "MaxLeto"]
[Black "NelsonLinda"]
[Result "1/2-1/2"]
[WhiteElo "2492"]
[BlackElo "2611"]
[TimeControl "180+1"]
[EndTime "9:28:49 PDT"]
[Termination "Game drawn by repetition"]

1. g4 {[%clk 0:03:00.9]} 1... a5 {[%clk 0:02:24.1]} 2. Bg2 {[%clk 0:03:00.4]}
2... a4 {[%clk 0:02:23.6]} 3. d4 {[%clk 0:02:58.4]} 3... d5 {[%clk 0:02:16.1]}
4. c4 {[%clk 0:02:58]} 4... dxc4 {[%clk 0:02:10]} 5. Nc3 {[%clk 0:02:55.1]} 5...
c6 {[%clk 0:02:03.1]} 6. h3 {[%clk 0:02:50.1]} 6... Nf6 {[%clk 0:01:58]} 7. Nxa4
{[%clk 0:02:47.2]} 7... e6 {[%clk 0:01:46.2]} 8. Nc3 {[%clk 0:02:35.8]} 8... Bb4
{[%clk 0:01:40.8]} 9. Nf3 {[%clk 0:02:34.8]} 9... O-O {[%clk 0:01:39.5]} 10. O-O
{[%clk 0:02:35]} 10... Nbd7 {[%clk 0:01:37]} 11. Bg5 {[%clk 0:02:17.5]} 11... h6
{[%clk 0:01:23.2]} 12. Bh4 {[%clk 0:02:16.8]} 12... Be7 {[%clk 0:01:23.5]} 13.
Bg3 {[%clk 0:01:43]} 13... Nd5 {[%clk 0:01:10.9]} 14. Nd2 {[%clk 0:01:37]} 14...
b5 {[%clk 0:01:01.3]} 15. e4 {[%clk 0:01:27.5]} 15... Nb4 {[%clk 0:00:54.4]} 16.
b3 {[%clk 0:01:20.4]} 16... cxb3 {[%clk 0:00:51]} 17. Nxb3 {[%clk 0:01:16.6]}
17... Bb7 {[%clk 0:00:48.7]} 18. Qe2 {[%clk 0:01:10.7]} 18... Qb6 {[%clk
0:00:38.7]} 19. Rfd1 {[%clk 0:01:04.1]} 19... Rfd8 {[%clk 0:00:37.9]} 20. a3
{[%clk 0:00:56.1]} 20... Na6 {[%clk 0:00:33.5]} 21. Kh1 {[%clk 0:00:55]} 21...
b4 {[%clk 0:00:20.1]} 22. axb4 {[%clk 0:00:54.8]} 22... Nxb4 {[%clk 0:00:21]}
23. Rab1 {[%clk 0:00:53.9]} 23... Ba6 {[%clk 0:00:19.7]} 24. Qd2 {[%clk
0:00:49.6]} 24... Qa7 {[%clk 0:00:18.7]} 25. Ra1 {[%clk 0:00:48.2]} 25... Qb6
{[%clk 0:00:17.9]} 26. Na4 {[%clk 0:00:38.6]} 26... Qb5 {[%clk 0:00:17.9]} 27.
Bf1 {[%clk 0:00:37.3]} 27... Qb7 {[%clk 0:00:15.4]} 28. Bg2 {[%clk 0:00:30.9]}
28... Qb5 {[%clk 0:00:14.7]} 29. f4 {[%clk 0:00:24.9]} 29... c5 {[%clk 0:00:08]}
30. d5 {[%clk 0:00:22.8]} 30... exd5 {[%clk 0:00:07.9]} 31. exd5 {[%clk
0:00:23.7]} 31... Bf6 {[%clk 0:00:08.4]} 32. Ra3 {[%clk 0:00:17.4]} 32... Qe2
{[%clk 0:00:08]} 33. Na5 {[%clk 0:00:11.2]} 33... Qxd2 {[%clk 0:00:07.1]} 34.
Rxd2 {[%clk 0:00:12.1]} 34... Bb5 {[%clk 0:00:07.4]} 35. Nb2 {[%clk 0:00:05.8]}
35... Nb6 {[%clk 0:00:03.6]} 36. d6 {[%clk 0:00:05]} 36... Ra7 {[%clk
0:00:03.3]} 37. Nac4 {[%clk 0:00:04.6]} 37... Rxa3 {[%clk 0:00:03.2]} 38. Nxa3
{[%clk 0:00:04.6]} 38... Bc6 {[%clk 0:00:01.8]} 39. f5 {[%clk 0:00:04.5]} 39...
Bxg2+ {[%clk 0:00:01.9]} 40. Kxg2 {[%clk 0:00:05.4]} 40... N6d5 {[%clk 0:00:02]}
41. Nac4 {[%clk 0:00:05.7]} 41... Nc3 {[%clk 0:00:02.1]} 42. Kf3 {[%clk
0:00:05.4]} 42... Nbd5 {[%clk 0:00:01.7]} 43. Kg2 {[%clk 0:00:05.7]} 43... g6
{[%clk 0:00:01.9]} 44. fxg6 {[%clk 0:00:05.7]} 44... fxg6 {[%clk 0:00:02.8]} 45.
Rf2 {[%clk 0:00:06.1]} 45... Bg7 {[%clk 0:00:03.1]} 46. Nd3 {[%clk 0:00:05.3]}
46... Ne4 {[%clk 0:00:03.5]} 47. Re2 {[%clk 0:00:04.7]} 47... Nxg3 {[%clk
0:00:04.1]} 48. Kxg3 {[%clk 0:00:05.6]} 48... Nb4 {[%clk 0:00:03.5]} 49. Nf4
{[%clk 0:00:05.5]} 49... Nc6 {[%clk 0:00:03.1]} 50. Re6 {[%clk 0:00:05.5]} 50...
g5 {[%clk 0:00:02.8]} 51. Nh5 {[%clk 0:00:06]} 51... Kf7 {[%clk 0:00:02.8]} 52.
Re2 {[%clk 0:00:04.7]} 52... Nd4 {[%clk 0:00:02.7]} 53. Re4 {[%clk 0:00:04.6]}
53... Bh8 {[%clk 0:00:02.2]} 54. Kf2 {[%clk 0:00:04.5]} 54... Ra8 {[%clk
0:00:02.5]} 55. Ke3 {[%clk 0:00:04.5]} 55... Ra3+ {[%clk 0:00:02.7]} 56. Kd2
{[%clk 0:00:04.8]} 56... Ra2+ {[%clk 0:00:03]} 57. Kd3 {[%clk 0:00:04.6]} 57...
Ra8 {[%clk 0:00:02.9]} 58. Re7+ {[%clk 0:00:04.6]} 58... Kg6 {[%clk 0:00:02.8]}
59. d7 {[%clk 0:00:04.7]} 59... Rd8 {[%clk 0:00:03]} 60. Nd6 {[%clk 0:00:04.8]}
60... Nc6 {[%clk 0:00:02.5]} 61. Nb7 {[%clk 0:00:04.6]} 61... Rb8 {[%clk
0:00:02.8]} 62. Re8 {[%clk 0:00:04.5]} 62... Rxb7 {[%clk 0:00:02.6]} 63. Rxh8
{[%clk 0:00:03.8]} 63... Rxd7+ {[%clk 0:00:02.9]} 64. Kc4 {[%clk 0:00:04.4]}
64... Ne5+ {[%clk 0:00:02.9]} 65. Kxc5 {[%clk 0:00:04.2]} 65... Nd3+ {[%clk
0:00:02.7]} 66. Kc6 {[%clk 0:00:04.4]} 66... Ra7 {[%clk 0:00:02.6]} 67. Rg8+
{[%clk 0:00:04.5]} 67... Kh7 {[%clk 0:00:01.6]} 68. Rd8 {[%clk 0:00:03.9]} 68...
Ne5+ {[%clk 0:00:01.4]} 69. Kd5 {[%clk 0:00:03.9]} 69... Ng6 {[%clk 0:00:01.4]}
70. Ke6 {[%clk 0:00:03.4]} 70... Nf4+ {[%clk 0:00:01.6]} 71. Kf5 {[%clk
0:00:03.6]} 71... Nxh5 {[%clk 0:00:01.6]} 72. gxh5 {[%clk 0:00:03.6]} 72... Rf7+
{[%clk 0:00:02]} 73. Ke6 {[%clk 0:00:03.8]} 73... Rf3 {[%clk 0:00:01.8]} 74.
Rd7+ {[%clk 0:00:04]} 74... Kg8 {[%clk 0:00:02.4]} 75. Rd8+ {[%clk 0:00:03.9]}
75... Kg7 {[%clk 0:00:03]} 76. Rd7+ {[%clk 0:00:04.2]} 76... Kg8 {[%clk
0:00:03.6]} 77. Rd8+ {[%clk 0:00:02.4]} 77... Kg7 {[%clk 0:00:04.2]} 78. Rd7+
{[%clk 0:00:02.4]} 78... Kg8 {[%clk 0:00:04.4]} 1/2-1/2

[Event "Early-Titled-Tuesday-Blitz-March-12-2024"]
[Site "Chess.com"]
[Date "2024.03.12"]
[Round "8"]
[White "LiamPutnam2008"]
[Black "Hanging_pointer"]
[Result "1/2-1/2"]
[WhiteElo "2896"]
[BlackElo "2721"]
[TimeControl "180+1"]
[EndTime "9:29:20 PDT"]
[Termination "Game drawn - insufficient material"]

1. e4 {[%clk 0:03:00.5]} 1... c6 {[%clk 0:03:00.4]} 2. d4 {[%clk 0:02:56]} 2...
d5 {[%clk 0:03:01.3]} 3. exd5 {[%clk 0:02:56.3]} 3... cxd5 {[%clk 0:02:54.8]} 4.
Bd3 {[%clk 0:02:56.3]} 4... Nc6 {[%clk 0:02:54.7]} 5. c3 {[%clk 0:02:56.1]} 5...
Nf6 {[%clk 0:02:55.6]} 6. h3 {[%clk 0:02:56.1]} 6... g6 {[%clk 0:02:55.5]} 7.
Nf3 {[%clk 0:02:55.8]} 7... Bg7 {[%clk 0:02:56.4]} 8. O-O {[%clk 0:02:56.2]}
8... O-O {[%clk 0:02:57.3]} 9. Re1 {[%clk 0:02:51.7]} 9... Bf5 {[%clk
0:02:56.1]} 10. Bxf5 {[%clk 0:02:32.5]} 10... gxf5 {[%clk 0:02:57]} 11. Nbd2
{[%clk 0:02:33.4]} 11... e6 {[%clk 0:02:54.8]} 12. b4 {[%clk 0:02:30.5]} 12...
a5 {[%clk 0:02:53]} 13. b5 {[%clk 0:02:29.2]} 13... Nb8 {[%clk 0:02:49.8]} 14.
a4 {[%clk 0:02:27.9]} 14... Nbd7 {[%clk 0:02:50.1]} 15. Ba3 {[%clk 0:02:26.5]}
15... Re8 {[%clk 0:02:50.4]} 16. c4 {[%clk 0:02:27]} 16... dxc4 {[%clk
0:02:43.9]} 17. Nxc4 {[%clk 0:02:27.9]} 17... Bf8 {[%clk 0:02:40.9]} 18. Bxf8
{[%clk 0:02:13.3]} 18... Rxf8 {[%clk 0:02:41.8]} 19. Qd2 {[%clk 0:02:10.6]}
19... Ne4 {[%clk 0:02:19.1]} 20. Qf4 {[%clk 0:02:10]} 20... Rc8 {[%clk 0:02:16]}
21. Rac1 {[%clk 0:02:06.8]} 21... Ndf6 {[%clk 0:02:12.5]} 22. Qh6 {[%clk
0:01:59.6]} 22... Nd5 {[%clk 0:02:05.2]} 23. Nce5 {[%clk 0:01:25]} 23... Rxc1
{[%clk 0:02:02.7]} 24. Rxc1 {[%clk 0:01:25.9]} 24... f6 {[%clk 0:02:01.7]} 25.
Nd3 {[%clk 0:01:17.9]} 25... Ndc3 {[%clk 0:02:02.1]} 26. Nf4 {[%clk 0:01:09.6]}
26... Qe7 {[%clk 0:01:58.5]} 27. Rc2 {[%clk 0:00:58]} 27... Rd8 {[%clk
0:01:51.4]} 28. Nh5 {[%clk 0:00:44.8]} 28... Nxa4 {[%clk 0:01:46.7]} 29. Nd2
{[%clk 0:00:40.7]} 29... Nxd2 {[%clk 0:01:45.2]} 30. Rxd2 {[%clk 0:00:38.6]}
30... Qf8 {[%clk 0:01:39.6]} 31. Nxf6+ {[%clk 0:00:28.5]} 31... Kf7 {[%clk
0:01:38.1]} 32. Qg5 {[%clk 0:00:10.4]} 32... Qg7 {[%clk 0:01:35.4]} 33. Qh5+
{[%clk 0:00:05.3]} 33... Kxf6 {[%clk 0:01:28.9]} 34. f4 {[%clk 0:00:05.1]} 34...
Rd5 {[%clk 0:01:18.8]} 35. Qh4+ {[%clk 0:00:04.1]} 35... Kf7 {[%clk 0:01:18.2]}
36. Qh5+ {[%clk 0:00:03.7]} 36... Qg6 {[%clk 0:01:18]} 37. Qh4 {[%clk
0:00:04.2]} 37... Nb6 {[%clk 0:01:06.5]} 38. Rc2 {[%clk 0:00:04.3]} 38... Qg7
{[%clk 0:01:04.5]} 39. Rc7+ {[%clk 0:00:04.2]} 39... Rd7 {[%clk 0:01:03.1]} 40.
Qd8 {[%clk 0:00:03.2]} 40... Qxd4+ {[%clk 0:01:02.5]} 41. Kh1 {[%clk 0:00:03.4]}
41... Rxc7 {[%clk 0:01:00.3]} 42. Qxc7+ {[%clk 0:00:04.3]} 42... Nd7 {[%clk
0:01:00.9]} 43. Qxb7 {[%clk 0:00:04.7]} 43... a4 {[%clk 0:00:57.3]} 44. b6
{[%clk 0:00:04.4]} 44... Ke7 {[%clk 0:00:54.4]} 45. Qa7 {[%clk 0:00:03.6]} 45...
Qxb6 {[%clk 0:00:47.3]} 46. Qxa4 {[%clk 0:00:03.9]} 46... Qd6 {[%clk 0:00:48]}
47. Qc4 {[%clk 0:00:03.5]} 47... Nf6 {[%clk 0:00:47.4]} 48. Qa4 {[%clk
0:00:03.1]} 48... Nd5 {[%clk 0:00:47.5]} 49. Qa7+ {[%clk 0:00:02.7]} 49... Qd7
{[%clk 0:00:47.5]} 50. Qa3+ {[%clk 0:00:02.7]} 50... Kf7 {[%clk 0:00:47.7]} 51.
Qf3 {[%clk 0:00:02.8]} 51... Kg7 {[%clk 0:00:47.1]} 52. Qg3+ {[%clk 0:00:03.1]}
52... Kh8 {[%clk 0:00:47.2]} 53. Qh4 {[%clk 0:00:03.4]} 53... Qf7 {[%clk
0:00:47]} 54. Qd8+ {[%clk 0:00:03.3]} 54... Kg7 {[%clk 0:00:47.6]} 55. Qg5+
{[%clk 0:00:03.4]} 55... Kf8 {[%clk 0:00:39.3]} 56. Qd8+ {[%clk 0:00:03.1]}
56... Qe8 {[%clk 0:00:40]} 57. Qd6+ {[%clk 0:00:02.5]} 57... Qe7 {[%clk
0:00:39.9]} 58. Qe5 {[%clk 0:00:03.1]} 58... Nf6 {[%clk 0:00:32.1]} 59. Qb8+
{[%clk 0:00:03.2]} 59... Kg7 {[%clk 0:00:32.4]} 60. Qe5 {[%clk 0:00:03.8]} 60...
Qf7 {[%clk 0:00:32.6]} 61. Kh2 {[%clk 0:00:03.9]} 61... h6 {[%clk 0:00:33.1]}
62. g4 {[%clk 0:00:04.3]} 62... fxg4 {[%clk 0:00:31.8]} 63. hxg4 {[%clk
0:00:05.2]} 63... Kh7 {[%clk 0:00:32.4]} 64. Kh3 {[%clk 0:00:04.9]} 64... Qg6
{[%clk 0:00:32.7]} 65. Qxe6 {[%clk 0:00:05.1]} 65... Qd3+ {[%clk 0:00:32.2]} 66.
Kh4 {[%clk 0:00:05.5]} 66... Qg6 {[%clk 0:00:31.8]} 67. Qe7+ {[%clk 0:00:05.5]}
67... Kh8 {[%clk 0:00:28.8]} 68. Qd8+ {[%clk 0:00:05.2]} 68... Ng8 {[%clk
0:00:28.5]} 69. Qd4+ {[%clk 0:00:05.1]} 69... Kh7 {[%clk 0:00:26.7]} 70. Qd7+
{[%clk 0:00:04.8]} 70... Kh8 {[%clk 0:00:24.6]} 71. Qd8 {[%clk 0:00:05.2]} 71...
Kg7 {[%clk 0:00:23.5]} 72. Qc7+ {[%clk 0:00:05.6]} 72... Qf7 {[%clk 0:00:23.1]}
73. Qb8 {[%clk 0:00:04.1]} 73... Ne7 {[%clk 0:00:21.6]} 74. Qe5+ {[%clk
0:00:04.1]} 74... Kh7 {[%clk 0:00:19.2]} 75. Kg3 {[%clk 0:00:04.5]} 75... Ng6
{[%clk 0:00:19.4]} 76. Qe4 {[%clk 0:00:04.8]} 76... Kg7 {[%clk 0:00:20.1]} 77.
f5 {[%clk 0:00:04.4]} 77... Nf8 {[%clk 0:00:19.6]} 78. Qe5+ {[%clk 0:00:04.3]}
78... Qf6 {[%clk 0:00:19.4]} 79. Qc7+ {[%clk 0:00:05]} 79... Qf7 {[%clk
0:00:19.7]} 80. Qe5+ {[%clk 0:00:05.4]} 80... Qf6 {[%clk 0:00:20.3]} 81. Qc7+
{[%clk 0:00:05.8]} 81... Kg8 {[%clk 0:00:20.8]} 82. Qb8 {[%clk 0:00:06.1]} 82...
Qf7 {[%clk 0:00:19.8]} 83. Qd8 {[%clk 0:00:05.3]} 83... Kg7 {[%clk 0:00:19.2]}
84. Qd4+ {[%clk 0:00:05.9]} 84... Qf6 {[%clk 0:00:19.7]} 85. Qa7+ {[%clk
0:00:06.6]} 85... Kg8 {[%clk 0:00:20.3]} 86. Kh3 {[%clk 0:00:06]} 86... Nh7
{[%clk 0:00:20.7]} 87. Qb8+ {[%clk 0:00:06]} 87... Kg7 {[%clk 0:00:21.1]} 88.
Qc7+ {[%clk 0:00:06.5]} 88... Qf7 {[%clk 0:00:21.8]} 89. Qe5+ {[%clk 0:00:06.5]}
89... Nf6 {[%clk 0:00:22.4]} 90. Kh4 {[%clk 0:00:06.6]} 90... Kh7 {[%clk
0:00:22.3]} 91. Qd4 {[%clk 0:00:05.9]} 91... Qg7 {[%clk 0:00:22.6]} 92. Qf4
{[%clk 0:00:05.4]} 92... Nd5 {[%clk 0:00:22.1]} 93. Qe4 {[%clk 0:00:04.5]} 93...
Qg5+ {[%clk 0:00:21.7]} 94. Kg3 {[%clk 0:00:04.2]} 94... Nf6 {[%clk 0:00:22.2]}
95. Qe7+ {[%clk 0:00:03.2]} 95... Qg7 {[%clk 0:00:22.6]} 96. Qb4 {[%clk
0:00:02.9]} 96... Qc7+ {[%clk 0:00:19.8]} 97. Kh3 {[%clk 0:00:02.7]} 97... Qg7
{[%clk 0:00:18.8]} 98. Qd4 {[%clk 0:00:03.2]} 98... h5 {[%clk 0:00:18.8]} 99.
gxh5 {[%clk 0:00:03.3]} 99... Qg5 {[%clk 0:00:19]} 100. Qa7+ {[%clk 0:00:03.2]}
100... Kh6 {[%clk 0:00:19.6]} 101. Qd4 {[%clk 0:00:03.4]} 101... Qxh5+ {[%clk
0:00:20]} 102. Kg2 {[%clk 0:00:03.5]} 102... Qxf5 {[%clk 0:00:20.4]} 103. Qh4+
{[%clk 0:00:03.7]} 103... Kg6 {[%clk 0:00:20.7]} 104. Qg3+ {[%clk 0:00:04.2]}
104... Ng4 {[%clk 0:00:21.4]} 105. Qf3 {[%clk 0:00:03.7]} 105... Qxf3+ {[%clk
0:00:17.7]} 106. Kxf3 {[%clk 0:00:04.6]} 1/2-1/2

[Event "Early-Titled-Tuesday-Blitz-March-12-2024"]
[Site "Chess.com"]
[Date "2024.03.12"]
[Round "9"]
[White "LiadCuba"]
[Black "DamianoLew95"]
[Result "1-0"]
[WhiteElo "2553"]
[BlackElo "2742"]
[TimeControl "180+1"]
[EndTime "9:39:55 PDT"]
[Termination "LiadCuba won by resignation"]

1. d4 {[%clk 0:03:00.9]} 1... Nf6 {[%clk 0:02:59.7]} 2. c4 {[%clk 0:03:00.8]}
2... e6 {[%clk 0:03:00.1]} 3. Nc3 {[%clk 0:03:00.8]} 3... Bb4 {[%clk 0:03:00]}
4. f3 {[%clk 0:03:00.8]} 4... c5 {[%clk 0:02:58]} 5. d5 {[%clk 0:03:00.9]} 5...
b5 {[%clk 0:02:57.6]} 6. e4 {[%clk 0:03:01]} 6... bxc4 {[%clk 0:02:56.9]} 7.
Bxc4 {[%clk 0:03:01.2]} 7... O-O {[%clk 0:02:57.1]} 8. Ne2 {[%clk 0:02:56.4]}
8... exd5 {[%clk 0:02:56.9]} 9. Bxd5 {[%clk 0:02:57.3]} 9... Nxd5 {[%clk
0:02:55]} 10. Qxd5 {[%clk 0:02:58.2]} 10... Qb6 {[%clk 0:02:43.3]} 11. Kf2
{[%clk 0:02:18.2]} 11... Bb7 {[%clk 0:02:41]} 12. Qg5 {[%clk 0:02:17.9]} 12...
Na6 {[%clk 0:02:16.9]} 13. Be3 {[%clk 0:02:15.5]} 13... Bxc3 {[%clk 0:02:06]}
14. bxc3 {[%clk 0:02:16.4]} 14... Bc6 {[%clk 0:01:40.7]} 15. Rhb1 {[%clk
0:02:15.2]} 15... Qa5 {[%clk 0:01:36.2]} 16. Qg3 {[%clk 0:02:05.8]} 16... Kh8
{[%clk 0:01:30.8]} 17. Rb3 {[%clk 0:01:41.7]} 17... Bb5 {[%clk 0:01:15.1]} 18.
Nf4 {[%clk 0:01:29.1]} 18... Bc4 {[%clk 0:01:07.9]} 19. Nh5 {[%clk 0:01:28.6]}
19... Rg8 {[%clk 0:01:07.9]} 20. Bh6 {[%clk 0:01:21.6]} 1-0

[Event "Early-Titled-Tuesday-Blitz-March-12-2024"]
[Site "Chess.com"]
[Date "2024.03.12"]
[Round "9"]
[White "Bilan_Danila"]
[Black "Flaccidmoves"]
[Result "1-0"]
[WhiteElo "2560"]
[BlackElo "2428"]
[TimeControl "180+1"]
[EndTime "9:39:59 PDT"]
[Termination "Bilan_Danila won by checkmate"]

1. d4 {[%clk 0:03:00.9]} 1... Nf6 {[%clk 0:02:57.7]} 2. Nf3 {[%clk 0:03:00.8]}
2... g6 {[%clk 0:02:57.4]} 3. Bg5 {[%clk 0:02:59.8]} 3... Bg7 {[%clk 0:02:56.8]}
4. c3 {[%clk 0:03:00.3]} 4... O-O {[%clk 0:02:56.5]} 5. Nbd2 {[%clk 0:03:00.5]}
5... d5 {[%clk 0:02:52.9]} 6. e3 {[%clk 0:03:00.5]} 6... b6 {[%clk 0:02:51.5]}
7. Bd3 {[%clk 0:02:59.9]} 7... c5 {[%clk 0:02:50.9]} 8. O-O {[%clk 0:03:00.6]}
8... Bb7 {[%clk 0:02:45.8]} 9. Ne5 {[%clk 0:03:00.3]} 9... Nc6 {[%clk
0:02:41.9]} 10. f4 {[%clk 0:03:00.6]} 10... Ne8 {[%clk 0:02:16]} 11. Qg4 {[%clk
0:02:35.2]} 11... Nd6 {[%clk 0:01:53.2]} 12. Qh4 {[%clk 0:02:25]} 12... f6
{[%clk 0:01:48.6]} 13. Nxg6 {[%clk 0:01:59.3]} 13... hxg6 {[%clk 0:01:49.5]} 14.
Bxg6 {[%clk 0:01:58.1]} 14... Rf7 {[%clk 0:01:45.4]} 15. Qh7+ {[%clk 0:01:50.7]}
15... Kf8 {[%clk 0:01:44.9]} 16. Bh6 {[%clk 0:01:51]} 16... e6 {[%clk
0:01:16.9]} 17. Bxf7 {[%clk 0:01:33.4]} 17... Bxh6 {[%clk 0:01:16.5]} 18. Bxe6
{[%clk 0:01:25]} 18... Bg7 {[%clk 0:01:14.1]} 19. Bxd5 {[%clk 0:01:22.2]} 19...
Qe7 {[%clk 0:00:57.9]} 20. Qg8# {[%clk 0:01:20.7]} 1-0

[Event "Early-Titled-Tuesday-Blitz-March-12-2024"]
[Site "Chess.com"]
[Date "2024.03.12"]
[Round "9"]
[White "omeganebulapegasus"]
[Black "Winner_7777"]
[Result "0-1"]
[WhiteElo "2788"]
[BlackElo "2590"]
[TimeControl "180+1"]
[EndTime "9:40:34 PDT"]
[Termination "Winner_7777 won by resignation"]

1. d4 {[%clk 0:03:00.9]} 1... d5 {[%clk 0:02:57.8]} 2. c4 {[%clk 0:03:00.8]}
2... e6 {[%clk 0:02:58.2]} 3. Nf3 {[%clk 0:03:00.9]} 3... c6 {[%clk 0:02:58.6]}
4. g3 {[%clk 0:03:00.4]} 4... dxc4 {[%clk 0:02:58.7]} 5. Bg2 {[%clk 0:03:00.6]}
5... b5 {[%clk 0:02:59.4]} 6. O-O {[%clk 0:02:59.3]} 6... Bb7 {[%clk 0:02:59.9]}
7. a4 {[%clk 0:02:54.6]} 7... Nf6 {[%clk 0:02:59]} 8. Ne5 {[%clk 0:02:54]} 8...
a6 {[%clk 0:02:59.1]} 9. b3 {[%clk 0:02:53.9]} 9... cxb3 {[%clk 0:02:57.4]} 10.
Qxb3 {[%clk 0:02:54.8]} 10... b4 {[%clk 0:02:56.6]} 11. Bb2 {[%clk 0:02:45.8]}
11... a5 {[%clk 0:02:55.4]} 12. Rc1 {[%clk 0:02:45.9]} 12... Ra6 {[%clk
0:02:53.8]} 13. Nd2 {[%clk 0:02:44.2]} 13... Be7 {[%clk 0:02:53.6]} 14. Nd3
{[%clk 0:02:41.6]} 14... Nbd7 {[%clk 0:02:52.7]} 15. Nc4 {[%clk 0:02:34.3]}
15... O-O {[%clk 0:02:50]} 16. Rc2 {[%clk 0:02:33]} 16... Qa8 {[%clk 0:02:46.7]}
17. Nce5 {[%clk 0:02:29.6]} 17... Rc8 {[%clk 0:02:45.3]} 18. Nc5 {[%clk
0:02:20.9]} 18... Nxc5 {[%clk 0:02:30.2]} 19. dxc5 {[%clk 0:02:21.8]} 19... Rd8
{[%clk 0:02:30.4]} 20. Rc4 {[%clk 0:02:16.3]} 20... Qc8 {[%clk 0:02:24.5]} 21.
Nd3 {[%clk 0:02:13.2]} 21... Ra7 {[%clk 0:02:20.4]} 22. Rh4 {[%clk 0:02:09.8]}
22... Ba6 {[%clk 0:02:12.5]} 23. Ne5 {[%clk 0:02:09.8]} 23... Nd5 {[%clk
0:02:07.9]} 24. Qc2 {[%clk 0:02:04.4]} 24... Bxh4 {[%clk 0:02:06.7]} 25. gxh4
{[%clk 0:02:02.9]} 25... f6 {[%clk 0:02:05.7]} 26. Nf3 {[%clk 0:01:57.3]} 26...
Nf4 {[%clk 0:02:03.1]} 27. Bf1 {[%clk 0:01:56.1]} 27... e5 {[%clk 0:02:02.6]}
28. Qe4 {[%clk 0:01:54.3]} 28... Rad7 {[%clk 0:01:14.1]} 29. Nxe5 {[%clk
0:01:37.2]} 29... fxe5 {[%clk 0:01:08.7]} 30. Qxe5 {[%clk 0:01:38.1]} 30... Rf7
{[%clk 0:01:06.4]} 31. f3 {[%clk 0:01:38]} 31... Re8 {[%clk 0:01:05.3]} 32. Qg5
{[%clk 0:01:37.5]} 32... Bxe2 {[%clk 0:00:53.6]} 0-1

[Event "Early-Titled-Tuesday-Blitz-March-12-2024"]
[Site "Chess.com"]
[Date "2024.03.12"]
[Round "9"]
[White "nekotyanof"]
[Black "SharapovEvgeny"]
[Result "1/2-1/2"]
[WhiteElo "2643"]
[BlackElo "2523"]
[TimeControl "180+1"]
[EndTime "9:40:42 PDT"]
[Termination "Game drawn by repetition"]

1. e4 {[%clk 0:03:00.9]} 1... c5 {[%clk 0:02:59.2]} 2. Nf3 {[%clk 0:03:01.1]}
2... d6 {[%clk 0:02:58.9]} 3. d4 {[%clk 0:02:58.8]} 3... cxd4 {[%clk 0:02:59.1]}
4. Nxd4 {[%clk 0:02:59.7]} 4... Nf6 {[%clk 0:02:59.2]} 5. Nc3 {[%clk 0:03:00.2]}
5... Nc6 {[%clk 0:02:59.3]} 6. Bg5 {[%clk 0:03:00.2]} 6... e6 {[%clk 0:02:59.6]}
7. Qd2 {[%clk 0:02:56.6]} 7... Be7 {[%clk 0:02:59.7]} 8. O-O-O {[%clk
0:02:56.4]} 8... O-O {[%clk 0:02:59.8]} 9. f4 {[%clk 0:02:56.4]} 9... Nxd4
{[%clk 0:02:59.3]} 10. Qxd4 {[%clk 0:02:56.6]} 10... Qa5 {[%clk 0:02:59.3]} 11.
h4 {[%clk 0:02:55.5]} 11... Rd8 {[%clk 0:02:57.7]} 12. Qe3 {[%clk 0:02:55.6]}
12... h6 {[%clk 0:02:47.5]} 13. Bd3 {[%clk 0:02:40]} 13... Qb6 {[%clk
0:02:15.4]} 14. Qg3 {[%clk 0:02:38.7]} 14... Kf8 {[%clk 0:02:12.8]} 15. e5
{[%clk 0:02:34.2]} 15... dxe5 {[%clk 0:02:10]} 16. fxe5 {[%clk 0:02:34]} 16...
Ng8 {[%clk 0:02:08.4]} 17. Bxe7+ {[%clk 0:02:32.1]} 17... Nxe7 {[%clk
0:02:07.8]} 18. Rhf1 {[%clk 0:02:31.1]} 18... Nf5 {[%clk 0:02:05.7]} 19. Bxf5
{[%clk 0:02:24.5]} 19... Rxd1+ {[%clk 0:02:05.2]} 20. Rxd1 {[%clk 0:02:25]}
20... exf5 {[%clk 0:02:04.3]} 21. Nd5 {[%clk 0:01:38]} 21... Qa5 {[%clk
0:02:02.3]} 22. b4 {[%clk 0:01:20.2]} 22... Qxa2 {[%clk 0:01:52.9]} 23. Nc7
{[%clk 0:01:13.7]} 23... Qa1+ {[%clk 0:01:44.3]} 24. Kd2 {[%clk 0:01:09.9]}
24... Qd4+ {[%clk 0:01:43.6]} 25. Kc1 {[%clk 0:00:21.6]} 25... Qa1+ {[%clk
0:01:39.8]} 26. Kd2 {[%clk 0:00:21.9]} 26... Qd4+ {[%clk 0:01:39.5]} 27. Kc1
{[%clk 0:00:15]} 27... Qa1+ {[%clk 0:01:39]} 1/2-1/2

[Event "Early-Titled-Tuesday-Blitz-March-12-2024"]
[Site "Chess.com"]
[Date "2024.03.12"]
[Round "9"]
[White "CarlosjPineror"]
[Black "AccioChess"]
[Result "1-0"]
[WhiteElo "2624"]
[BlackElo "2436"]
[TimeControl "180+1"]
[EndTime "9:41:01 PDT"]
[Termination "CarlosjPineror won by resignation"]

1. e4 {[%clk 0:02:44.2]} 1... c5 {[%clk 0:02:59]} 2. Nf3 {[%clk 0:02:43.4]} 2...
Nc6 {[%clk 0:02:57.3]} 3. g3 {[%clk 0:02:42.7]} 3... g6 {[%clk 0:02:55.4]} 4.
Bg2 {[%clk 0:02:41.5]} 4... Bg7 {[%clk 0:02:56]} 5. O-O {[%clk 0:02:41.5]} 5...
d6 {[%clk 0:02:56.5]} 6. h3 {[%clk 0:02:41.1]} 6... Nf6 {[%clk 0:02:56.6]} 7.
Nc3 {[%clk 0:02:40.8]} 7... O-O {[%clk 0:02:56.8]} 8. d3 {[%clk 0:02:41.3]} 8...
Rb8 {[%clk 0:02:52.2]} 9. Be3 {[%clk 0:02:38.5]} 9... b5 {[%clk 0:02:52.1]} 10.
Qd2 {[%clk 0:02:38.8]} 10... b4 {[%clk 0:02:52.2]} 11. Nd1 {[%clk 0:02:38.7]}
11... a5 {[%clk 0:02:50]} 12. Ne1 {[%clk 0:02:38.4]} 12... a4 {[%clk 0:02:49.2]}
13. Rc1 {[%clk 0:02:37]} 13... a3 {[%clk 0:02:48.3]} 14. b3 {[%clk 0:02:37.3]}
14... Nd4 {[%clk 0:02:36.1]} 15. f4 {[%clk 0:02:34.1]} 15... Ne8 {[%clk
0:02:21.9]} 16. Kh2 {[%clk 0:02:31.8]} 16... Nc7 {[%clk 0:02:21.6]} 17. c4
{[%clk 0:02:22.8]} 17... Bd7 {[%clk 0:02:07.6]} 18. Nf3 {[%clk 0:02:20.7]} 18...
Nxf3+ {[%clk 0:02:00]} 19. Bxf3 {[%clk 0:02:20.7]} 19... Ne6 {[%clk 0:02:00.6]}
20. Bg2 {[%clk 0:02:21.2]} 20... Nd4 {[%clk 0:02:00.6]} 21. Bg1 {[%clk
0:02:17.9]} 21... f5 {[%clk 0:01:59.4]} 22. Ne3 {[%clk 0:02:17.7]} 22... e6
{[%clk 0:01:58.7]} 23. Nc2 {[%clk 0:02:17.3]} 23... Nc6 {[%clk 0:01:52.4]} 24.
exf5 {[%clk 0:02:13.4]} 24... gxf5 {[%clk 0:01:52]} 25. d4 {[%clk 0:02:13.7]}
25... Qe7 {[%clk 0:01:40.9]} 26. Rfe1 {[%clk 0:02:03.4]} 26... Rbc8 {[%clk
0:01:14.8]} 27. Rcd1 {[%clk 0:02:02.7]} 27... Rf7 {[%clk 0:00:53.3]} 28. Qd3
{[%clk 0:01:55.3]} 28... cxd4 {[%clk 0:00:47.3]} 29. Nxd4 {[%clk 0:01:54]} 29...
Nd8 {[%clk 0:00:28.6]} 30. Nxf5 {[%clk 0:01:50.4]} 30... Rxf5 {[%clk 0:00:20.6]}
31. Qxf5 {[%clk 0:01:50.2]} 31... Bc6 {[%clk 0:00:20.8]} 32. Qd3 {[%clk
0:01:37.8]} 32... Bxg2 {[%clk 0:00:20.2]} 33. Kxg2 {[%clk 0:01:38.7]} 33... Qb7+
{[%clk 0:00:19.7]} 34. Qf3 {[%clk 0:01:38.6]} 34... Qf7 {[%clk 0:00:20]} 35.
Rxd6 {[%clk 0:01:37.7]} 35... Nb7 {[%clk 0:00:20.2]} 36. Rdxe6 {[%clk
0:01:35.7]} 36... Qf5 {[%clk 0:00:19.9]} 37. Qxb7 {[%clk 0:01:34.6]} 1-0